Workbook

Sheet Sheet1
A1: 0 | B1: 02 | C1: 03 | D1: 04 | E1: 0
A2: name | B2: password | C2: date | D2: time
A3: kkk | B3: kkk | C3: 2020-10-02 | D3: 18:24:42
A4: kkk | B4: kkk | C4: 2020-10-02 | D4: 19:37:46
A5: kkk | B5: kkk | C5: 2020-10-02 | D5: 19:40:17
A6: kkk | B6: kkk | C6: 2020-10-02 | D6: 19:47:56
A7: kkk | B7: kkk | C7: 2020-10-02 | D7: 20:11:55
A8: kkk | B8: kkk | C8: 2020-10-02 | D8: 20:41:42
A9: kkk | B9: kkk | C9: 2020-10-02 | D9: 21:01:29
A10: kkk | B10: kkk | C10: 2020-10-02 | D10: 21:53:01
A11: kkk | B11: kkk | C11: 2020-10-02 | D11: 21:56:07
A12: kkk | B12: kkk | C12: 2020-10-02 | D12: 21:58:16
A13: kkk | B13: kkk | C13: 2020-10-02 | D13: 21:59:21
A14: kkk | B14: kkk | C14: 2020-10-02 | D14: 22:03:54
A15: kkk | B15: kkk | C15: 2020-10-02 | D15: 22:08:36
A16: kkk | B16: kkk | C16: 2020-10-02 | D16: 22:27:07
A17: kkk | B17: kkk | C17: 2020-10-02 | D17: 23:05:40
A18: kkk | B18: kkk | C18: 2020-10-02 | D18: 23:17:06
A19: kkk | B19: kkk | C19: 2020-10-02 | D19: 00:00:00
A20: kkk | B20: kkk | C20: 2020-10-02 | D20: 23:53:52
A21: kkk | B21: kkk | C21: 2020-10-03 | D21: 00:11:31
A22: kkk | B22: kkk | C22: 2020-10-03 | D22: 01:16:06
A23: kkk | B23: kkk | C23: 2020-10-03 | D23: 02:02:50
A24: kkk | B24: kkk | C24: 2020-10-03 | D24: 19:14:13
A25: kkk | B25: kkk | C25: 2020-10-03 | D25: 19:50:43
A26: kkk | B26: kkk | C26: 2020-10-03 | D26: 19:53:16
A27: kkk | B27: kkk | C27: 2020-10-03 | D27: 20:00:14
A28: kkk | B28: kkkk | C28: 2020-10-03 | D28: 20:11:58
A29: kkk | B29: kkk | C29: 2020-10-03 | D29: 20:12:03
A30: kkk | B30: kkk | C30: 2020-10-03 | D30: 20:15:33

Sheet Sheet2
A1: الكود | B1: الصنف | C1: العدد | D1: س1 | E1: ن | F1: السعر
A2: 243 | B2: عبايه ساندي | C2: 1 | D2: 70 | E2: =40/100*D2 -> 28 | F2: =E2+D2 -> 98
A3: 112 | B3: كاش جمانه | C3: 1 | D3: 125 | E3: =45/100*D3 -> 56.25 | F3: =D3+E3 -> 181.25
A4: 310 | B4: كاش حياه | C4: 1 | D4: 70 | E4: =45/100*D4 -> 31.5 | F4: =D4+E4 -> 101.5
A5: 4056 | B5: كاش جي اتش | C5: 2 | D5: 40 | E5: 18 | F5: 58
A6: 309 | B6: كاش حياه | C6: 1 | D6: 70 | E6: 31.5 | F6: 101.5
A7: 303 | B7: كاش حياه | C7: 1 | D7: 70 | E7: 31.5 | F7: 101.5
A8: 807 | B8: كاش لوران | C8: 1 | D8: 70 | E8: 31.5 | F8: 101.5
A9: 8426 | B9: كاش جي ام | C9: 1 | D9: 40 | E9: 18 | F9: 58
A10: 1450 | B10: كاش باسورد0 | C10: 1 | D10: 40 | E10: 18 | F10: 58
A11: 4027 | B11: كاش جي اتش | C11: 1 | D11: 40 | E11: 18 | F11: 58
A12: 735 | B12: عبايه لوكا | C12: 1 | D12: 75 | E12: 33.75 | F12: 108.75
A13: 306 | B13: عبايا الصباح كم | C13: 1 | D13: 140 | E13: 63 | F13: 203
A14: 192 | B14: لانجري روبن | C14: 2 | D14: 40 | E14: 18 | F14: 58
A15: 911 | B15: جلاريا | C15: 1 | D15: 75 | E15: 33.75 | F15: 108.75
A16: 32 | B16: تالي | C16: 1 | D16: 75 | E16: 33.75 | F16: 108.75
A17: 1033 | B17: عالموضه | C17: 1 | D17: 70 | E17: 31.5 | F17: 101.5
A18: 189 | B18: روبن | C18: 1 | D18: 40 | E18: 18 | F18: 58
A19: 402 | B19: ريكازا | C19: 1 | D19: 70 | E19: 31.5 | F19: 101.5
A20: 177 | B20: روبن | C20: 1 | D20: 40 | E20: 18 | F20: 58
A21: 506 | B21: حنين | C21: 1 | D21: 140 | E21: 63 | F21: 203
A22: 7062 | B22: كلارا | C22: 1 | D22: 135 | E22: 60.75 | F22: 195.75
A23: 370 | B23: مشاعر | C23: 1 | D23: 40 | E23: 18 | F23: 58
A24: 5032 | B24: بيوتي نايت | C24: 1 | D24: 80 | E24: 36 | F24: 116
A25: 190 | B25: روبن | C25: 1 | D25: 40 | E25: 18 | F25: 58
A26: 510 | B26: مشاعر | C26: 2 | D26: 40 | E26: 18 | F26: 58
A27: 713 | B27: جوليسيا | C27: 1 | D27: 75 | E27: 33.75 | F27: 108.75
A28: 2088 | B28: مرسيليا | C28: 1 | D28: 44 | E28: 19.8 | F28: 63.8
A29: 800 | B29: جولي | C29: 1 | D29: 70 | E29: 31.5 | F29: 101.5
A30: 2027 | B30: دزاير | C30: 1 | D30: 80 | E30: 36 | F30: 116
A31: 143 | B31: الماسه | C31: 1 | D31: 130 | E31: 58.5 | F31: 188.5
A32: 186 | B32: المتميز | C32: 1 | D32: 80 | E32: 36 | F32: 116
A33: 1088 | B33: مس امنيه | C33: 1 | D33: 45 | E33: 20.25 | F33: 65.25
A34: 189 | B34: روبن | C34: 1 | D34: 40 | E34: 18 | F34: 58
A35: 7021 | B35: كلارا | C35: 1 | D35: 90 | E35: 40.5 | F35: 130.5
A36: 253 | B36: البسيط | C36: 1 | D36: 60 | E36: 27 | F36: 87
A37: 120 | B37: هاي ليدي | C37: 1 | D37: 55 | E37: 24.75 | F37: 79.75
A38: 460 | B38: ميرا | C38: 1 | D38: 50 | E38: 22.5 | F38: 72.5
A39: 195 | B39: روبن | C39: 1 | D39: 30 | E39: 13.5 | F39: 43.5
A40: 505 | B40: مشاعر | C40: 1 | D40: 25 | E40: 11.25 | F40: 36.25
A41: 385 | B41: مشاعر | C41: 1 | D41: 25 | E41: 11.25 | F41: 36.25
A42: 450 | B42: مشاعر | C42: 1 | D42: 25 | E42: 11.25 | F42: 36.25
A43: 560 | B43: مشاعر | C43: 1 | D43: 25 | E43: 11.25 | F43: 36.25
A44: 515 | B44: مشاعر | C44: 1 | D44: 25 | E44: 11.25 | F44: 36.25
A45: 130 | B45: ردروز | C45: 1 | D45: 46 | E45: 20.7 | F45: 66.7
A46: 565 | B46: مشاعر | C46: 1 | D46: 25 | E46: 11.25 | F46: 36.25
A47: 102 | B47: العروسه | C47: 1 | D47: 65 | E47: 29.25 | F47: 94.25
A48: 255 | B48: موجه | C48: 1 | D48: 45 | E48: =45/100*D48 -> 20.25 | F48: =D48+E48 -> 65.25
A49: 404 | B49: موجه | C49: 1 | D49: 60 | E49: 27 | F49: 87
A50: 242 | B50: موجه | C50: 1 | D50: 46 | E50: 20.7 | F50: 66.7
A51: 244 | B51: موجه | C51: 2 | D51: 46 | E51: 20.7 | F51: 66.7
A52: 183 | B52: روبن | C52: 1 | D52: 25 | E52: 11.25 | F52: 36.25
A53: 266 | B53: جوي | C53: 1 | D53: 90 | E53: 40.5 | F53: 130.5
E108: =40/100*D108 -> 0 | F108: =E108+D108 -> 0
E109: 0 | F109: 0
E110: 0 | F110: 0
E111: 0 | F111: 0
E112: 0 | F112: 0
E113: 0 | F113: 0
E114: 0 | F114: 0
E115: 0 | F115: 0
E116: 0 | F116: 0
E117: 0 | F117: 0
E118: 0 | F118: 0
E119: 0 | F119: 0
E120: 0 | F120: 0
E121: 0 | F121: 0
E122: 0 | F122: 0
E123: 0 | F123: 0
E124: 0 | F124: 0
E125: 0 | F125: 0
E126: 0 | F126: 0
E127: 0 | F127: 0
E128: 0 | F128: 0
E129: 0 | F129: 0
E130: 0 | F130: 0
E131: 0 | F131: 0
E132: 0 | F132: 0
E133: 0 | F133: 0
E134: 0 | F134: 0
E135: 0 | F135: 0
E136: 0 | F136: 0
E137: 0 | F137: 0
E138: 0 | F138: 0
E139: 0 | F139: 0
E140: 0 | F140: 0
E141: 0 | F141: 0
E142: 0 | F142: 0
E143: 0 | F143: 0
E144: 0 | F144: 0
E145: 0 | F145: 0
E146: 0 | F146: 0
E147: 0 | F147: 0
E148: 0 | F148: 0
E149: 0 | F149: 0
E150: 0 | F150: 0
E151: 0 | F151: 0
E152: 0 | F152: 0
E153: 0 | F153: 0
E154: 0 | F154: 0
E155: 0 | F155: 0
E156: 0 | F156: 0
E157: 0 | F157: 0
E158: 0 | F158: 0
E159: 0 | F159: 0
E160: 0 | F160: 0
E161: 0 | F161: 0
E162: 0 | F162: 0
E163: 0 | F163: 0
E164: 0 | F164: 0
E165: 0 | F165: 0
E166: 0 | F166: 0
E167: 0 | F167: 0
E168: =40/100*D168 -> 0 | F168: =E168+D168 -> 0
E169: 0 | F169: 0
E170: 0 | F170: 0
E171: 0 | F171: 0
E172: 0 | F172: 0
E173: 0 | F173: 0
E174: 0 | F174: 0
E175: 0 | F175: 0
E176: 0 | F176: 0
E177: 0 | F177: 0
E178: 0 | F178: 0
E179: 0 | F179: 0
E180: 0 | F180: 0
E181: 0 | F181: 0
E182: 0 | F182: 0
E183: 0 | F183: 0
E184: 0 | F184: 0
E185: 0 | F185: 0
E186: 0 | F186: 0
E187: 0 | F187: 0
E188: 0 | F188: 0
E189: 0 | F189: 0
E190: 0 | F190: 0
E191: 0 | F191: 0
E192: 0 | F192: 0
E193: 0 | F193: 0
E194: 0 | F194: 0
E195: 0 | F195: 0
E196: 0 | F196: 0
E197: 0 | F197: 0
E198: 0 | F198: 0
E199: 0 | F199: 0
E200: 0 | F200: 0
E201: 0 | F201: 0
E202: 0 | F202: 0
E203: 0 | F203: 0
E204: 0 | F204: 0
E205: 0 | F205: 0
E206: 0 | F206: 0
E207: 0 | F207: 0
E208: 0 | F208: 0
E209: 0 | F209: 0
E210: 0 | F210: 0
E211: 0 | F211: 0
E212: 0 | F212: 0
E213: 0 | F213: 0
E214: 0 | F214: 0
E215: 0 | F215: 0
E216: 0 | F216: 0
E217: 0 | F217: 0
E218: 0 | F218: 0
E219: 0 | F219: 0
E220: 0 | F220: 0
E221: 0 | F221: 0
E222: 0 | F222: 0
E223: 0 | F223: 0
E224: 0 | F224: 0
E225: 0 | F225: 0
E226: 0 | F226: 0
E227: 0 | F227: 0
E228: 0 | F228: 0
E229: 0 | F229: 0
E230: 0 | F230: 0
E231: 0 | F231: 0
E232: =40/100*D232 -> 0 | F232: =E232+D232 -> 0
E233: 0 | F233: 0
E234: 0 | F234: 0
E235: 0 | F235: 0
E236: 0 | F236: 0
E237: 0 | F237: 0
E238: 0 | F238: 0
E239: 0 | F239: 0
E240: 0 | F240: 0
E241: 0 | F241: 0
E242: 0 | F242: 0
E243: 0 | F243: 0
E244: 0 | F244: 0
E245: 0 | F245: 0
E246: 0 | F246: 0
E247: 0 | F247: 0
E248: 0 | F248: 0
E249: 0 | F249: 0
E250: 0 | F250: 0
E251: 0 | F251: 0
E252: 0 | F252: 0
E253: 0 | F253: 0
E254: 0 | F254: 0
... 991 more rows

Sheet Sheet3
A1: الكود | B1: الصنف | C1: العدد | D1: س1 | E1: ن | F1: السعر
A2: 1549 | B2: ماسا | C2: 4 | D2: 190 | E2: =30/100*D2 -> 57 | F2: =D2+E2 -> 247
A3: 1534 | B3: ماسا | C3: 1 | D3: 175 | E3: =30/100*D3 -> 52.5 | F3: =D3+E3 -> 227.5
A4: 2150 | B4: الجوهره | C4: 3 | D4: 180 | E4: 54 | F4: 234
A5: 2080 | B5: ديما | C5: 1 | D5: 180 | E5: 54 | F5: 234
A6: 4350 | B6: بسمه | C6: 1 | D6: 317 | E6: 95.1 | F6: 412.1
A7: 804 | B7: لورينا | C7: 1 | D7: 200 | E7: 60 | F7: 260
A8: 2105 | B8: جي ام | C8: 2 | D8: 190 | E8: 57 | F8: 247
A9: 2411 | B9: جي ام | C9: 3 | D9: 180 | E9: 54 | F9: 234
A10: 4327 | B10: بسمه | C10: 1 | D10: 270 | E10: 81 | F10: 351
A11: 1522 | B11: ماسا | C11: 1 | D11: 270 | E11: 81 | F11: 351
A12: 1507 | B12: ماسا | C12: 1 | D12: 269 | E12: 80.7 | F12: 349.7
A13: 5586 | B13: بسمه | C13: 1 | D13: 270 | E13: 81 | F13: 351
A14: 4317 | B14: بسمه | C14: 1 | D14: 310 | E14: 93 | F14: 403
A15: 201 | B15: شيماء | C15: 1 | D15: 200 | E15: 60 | F15: 260
A16: 60069 | B16: شيماء | C16: 1 | D16: 185 | E16: 55.5 | F16: 240.5
A17: 60048 | B17: شيماء | C17: 1 | D17: 185 | E17: 55.5 | F17: 240.5
A18: 70022 | B18: شيماء | C18: 1 | D18: 200 | E18: 60 | F18: 260
A19: 60016 | B19: شيماء | C19: 1 | D19: 185 | E19: 55.5 | F19: 240.5
A20: 60030 | B20: شيماء | C20: 1 | D20: 185 | E20: 55.5 | F20: 240.5
A21: 7711 | B21: ديفا رحمه | C21: 2 | D21: 120 | E21: 36 | F21: 156
A22: 800 | B22: ندا جروب | C22: 1 | D22: 155 | E22: 46.5 | F22: 201.5
A23: 6255 | B23: ذا بست | C23: 1 | D23: 150 | E23: 45 | F23: 195
A24: 128 | B24: هابي لف ش | C24: 1 | D24: 180 | E24: 54 | F24: 234
A25: 8578 | B25: برموده جي ام | C25: 1 | D25: 140 | E25: 42 | F25: 182
A26: 418 | B26: برموده جي ام | C26: 1 | D26: 150 | E26: 45 | F26: 195
A27: 573 | B27: مس جنا | C27: 1 | D27: 150 | E27: 45 | F27: 195
A28: 1102 | B28: مس جنا | C28: 1 | D28: 135 | E28: 40.5 | F28: 175.5
A29: 544 | B29: مس جنا | C29: 1 | D29: 135 | E29: 40.5 | F29: 175.5
A30: 125 | B30: روتانه | C30: 1 | D30: 80 | E30: 24 | F30: 104
A31: 780 | B31: البرنسيسه | C31: 1 | D31: 70 | E31: 21 | F31: 91
A32: 743 | B32: جولدن | C32: 1 | D32: 125 | E32: 37.5 | F32: 162.5
A33: 96 | B33: هابي لف | C33: 1 | D33: 140 | E33: 42 | F33: 182
A34: 101 | B34: هابي لف | C34: 1 | D34: 145 | E34: 43.5 | F34: 188.5
A35: 93 | B35: دي ام | C35: 1 | D35: 125 | E35: 37.5 | F35: 162.5
A36: 116 | B36: روتانا | C36: 1 | D36: 100 | E36: 30 | F36: 130
A37: 936 | B37: مس جنا | C37: 1 | D37: 145 | E37: 43.5 | F37: 188.5
A38: 982 | B38: مس جنا | C38: 1 | D38: 140 | E38: 42 | F38: 182
A39: 5281 | B39: ماسا خريفي | C39: 1 | D39: 155 | E39: 46.5 | F39: 201.5
A40: 5278-5271 | B40: ماسا خريفي | C40: 1 | D40: 180 | E40: 54 | F40: 234
A41: 5299-5288 | B41: ماسا خريفي | C41: 2 | D41: 180 | E41: 54 | F41: 234
A42: 125 | B42: هابي لف | C42: 1 | D42: 130 | E42: 39 | F42: 169
A43: 33424 | B43: تركي | C43: 1 | D43: 115 | E43: 34.5 | F43: 149.5
A44: 106 | B44: هابي لف | C44: 1 | D44: 115 | E44: 34.5 | F44: 149.5
A45: 23105 | B45: تركي | C45: 1 | D45: 100 | E45: 30 | F45: 130
A46: 1822 | B46: جوجو | C46: 2 | D46: 105 | E46: 31.5 | F46: 136.5
A47: 2076 | B47: كتاكيت | C47: 1 | D47: 175 | E47: 52.5 | F47: 227.5
A48: 10005 | B48: فيوليت | C48: 1 | D48: 170 | E48: 51 | F48: 221
A49: 126 | B49: لولي بوب | C49: 1 | D49: 165 | E49: 49.5 | F49: 214.5
A50: 969 | B50: مس جنا | C50: 1 | D50: 160 | E50: 48 | F50: 208
A51: 108 | B51: هابي لف | C51: 1 | D51: 130 | E51: 39 | F51: 169
E52: 0 | F52: 0
E53: 0 | F53: 0
E54: 0 | F54: 0
E55: 0 | F55: 0
E56: 0 | F56: 0
E57: 0 | F57: 0
E58: 0 | F58: 0
E59: 0 | F59: 0
E60: 0 | F60: 0
E61: 0 | F61: 0
E62: 0 | F62: 0
E63: 0 | F63: 0
E64: 0 | F64: 0
E65: 0 | F65: 0
E66: 0 | F66: 0
E67: =30/100*D67 -> 0 | F67: =D67+E67 -> 0
E68: 0 | F68: 0
E69: 0 | F69: 0
E70: 0 | F70: 0
E71: 0 | F71: 0
E72: 0 | F72: 0
E73: 0 | F73: 0
E74: 0 | F74: 0
E75: 0 | F75: 0
E76: 0 | F76: 0
E77: 0 | F77: 0
E78: 0 | F78: 0
E79: 0 | F79: 0
E80: 0 | F80: 0
E81: 0 | F81: 0
E82: 0 | F82: 0
E83: 0 | F83: 0
E84: 0 | F84: 0
E85: 0 | F85: 0
E86: 0 | F86: 0
E87: 0 | F87: 0
E88: 0 | F88: 0
E89: 0 | F89: 0
E90: 0 | F90: 0
E91: 0 | F91: 0
E92: 0 | F92: 0
E93: 0 | F93: 0
E94: 0 | F94: 0
E95: 0 | F95: 0
E96: 0 | F96: 0
E97: 0 | F97: 0
E98: 0 | F98: 0
E99: 0 | F99: 0
E100: 0 | F100: 0
E101: 0 | F101: 0
E102: 0 | F102: 0
E103: 0 | F103: 0
E104: 0 | F104: 0
E105: 0 | F105: 0
E106: 0 | F106: 0
E107: 0 | F107: 0
E108: 0 | F108: 0
E109: 0 | F109: 0
E110: 0 | F110: 0
E111: 0 | F111: 0
E112: 0 | F112: 0
E113: 0 | F113: 0
E114: 0 | F114: 0
E115: 0 | F115: 0
E116: 0 | F116: 0
E117: 0 | F117: 0
E118: 0 | F118: 0
E119: 0 | F119: 0
E120: 0 | F120: 0
E121: 0 | F121: 0
E122: 0 | F122: 0
E123: 0 | F123: 0
E124: 0 | F124: 0
E125: 0 | F125: 0
E126: 0 | F126: 0
E127: 0 | F127: 0
E128: 0 | F128: 0
E129: 0 | F129: 0
E130: 0 | F130: 0
E131: =30/100*D131 -> 0 | F131: =D131+E131 -> 0
E132: 0 | F132: 0
E133: 0 | F133: 0
E134: 0 | F134: 0
E135: 0 | F135: 0
E136: 0 | F136: 0
E137: 0 | F137: 0
E138: 0 | F138: 0
E139: 0 | F139: 0
E140: 0 | F140: 0
E141: 0 | F141: 0
E142: 0 | F142: 0
E143: 0 | F143: 0
E144: 0 | F144: 0
E145: 0 | F145: 0
E146: 0 | F146: 0
E147: 0 | F147: 0
E148: 0 | F148: 0
E149: 0 | F149: 0
E150: 0 | F150: 0
E151: 0 | F151: 0
E152: 0 | F152: 0
E153: 0 | F153: 0
E154: 0 | F154: 0
E155: 0 | F155: 0
E156: 0 | F156: 0
E157: 0 | F157: 0
E158: 0 | F158: 0
E159: 0 | F159: 0
E160: 0 | F160: 0
E161: 0 | F161: 0
E162: 0 | F162: 0
E163: 0 | F163: 0
E164: 0 | F164: 0
E165: 0 | F165: 0
E166: 0 | F166: 0
E167: 0 | F167: 0
E168: 0 | F168: 0
E169: 0 | F169: 0
E170: 0 | F170: 0
E171: 0 | F171: 0
E172: 0 | F172: 0
E173: 0 | F173: 0
E174: 0 | F174: 0
E175: 0 | F175: 0
E176: 0 | F176: 0
E177: 0 | F177: 0
E178: 0 | F178: 0
E179: 0 | F179: 0
E180: 0 | F180: 0
E181: 0 | F181: 0
E182: 0 | F182: 0
E183: 0 | F183: 0
E184: 0 | F184: 0
E185: 0 | F185: 0
E186: 0 | F186: 0
E187: 0 | F187: 0
E188: 0 | F188: 0
E189: 0 | F189: 0
E190: 0 | F190: 0
E191: 0 | F191: 0
E192: 0 | F192: 0
E193: 0 | F193: 0
E194: 0 | F194: 0
E195: =30/100*D195 -> 0 | F195: =D195+E195 -> 0
E196: 0 | F196: 0
E197: 0 | F197: 0
E198: 0 | F198: 0
E199: 0 | F199: 0
E200: 0 | F200: 0
... 1081 more rows

Sheet Sheet4
A1: الكود | B1: عدد | C1: السعر | D1: س1
A2: اسدالات 3d 2020 | B2: 4 | C2: 170 | D2: 220
A3: اسدال فسكوز | B3: 14 | C3: 110 | D3: 160
A4: فسكوز كم | B4: 1 | C4: 125 | D4: 140
A5: عبايه استقبال نبيتي | B5: 1 | C5: 275 | D5: 300
A6: عبايه حمرا فرع ورد | B6: 2 | C6: 150 | D6: 200
A7: عبايه 3 زراير | B7: 2 | C7: 175 | D7: 220
A8: عبايه نبيتي تطريز يدوي | B8: 1 | C8: 160 | D8: 200
A9: اسدال ازالا ليالينا | B9: 3 | C9: 165 | D9: 220
A10: عبايا زيتي | B10: 1 | C10: 250 | D10: 290
A11: عبايا بيج | B11: 1 | C11: 250 | D11: 290

Sheet Sheet5
A1: الكود | B1: الصنف | C1: العدد | D1: السعر | E1: ن | F1: السعر
B2: بوكسر ots | C2: 6 | D2: =E2+F2 -> 30.8 | E2: =40/100*F2 -> 8.8 | F2: 22
A3: 390 | B3: بنطلون وشين | C3: 6 | D3: =E3+F3 -> 77 | E3: =40/100*F3 -> 22 | F3: 55
A4: 1150 | B4: اندر فور ام | C4: 12 | D4: 19.6 | E4: 5.6 | F4: 14
A5: 109 | B5: اندر كارما | C5: 6 | D5: 23.8 | E5: 6.8 | F5: 17
A6: 2300 | B6: اندر برنسيس قطن | C6: 45 | D6: 28 | E6: 8 | F6: 20
A7: 1006 | B7: اندر حريمي p A | C7: 0 | D7: 19.6 | E7: 5.6 | F7: 14
A8: 1480 | B8: اندر حريمي hana | C8: 0 | D8: 18.2 | E8: 5.2 | F8: 13
A9: 34-73 | B9: اندر حريمي md | C9: 0 | D9: 21 | E9: 6 | F9: 15
A10: 2100 | B10: اندر حريمي mhl | C10: 0 | D10: 26.6 | E10: 7.6 | F10: 19
B11: اندر شيكو | C11: 12 | D11: 21 | E11: 6 | F11: 15
B12: شرابات | C12: 52 | D12: 7 | E12: 2 | F12: 5
A13: 52-50 | B13: طقم خالد وباسم | C13: 23 | D13: 35 | E13: 10 | F13: 25
A14: 140 | B14: بوكسر سبيدر مان | C14: 8 | D14: 25.2 | E14: 7.2 | F14: 18
A15: 2410 | B15: طقم 3 اكس | C15: 3 | D15: 84 | E15: 24 | F15: 60
A16: 2411 | B16: طقم 4 اكس | C16: 3 | D16: 84 | E16: 24 | F16: 60
A17: 3x | B17: بوكسر 3اكس ots | C17: 3 | D17: 30.8 | E17: 8.8 | F17: 22
A18: 2x | B18: بوكسر جولدن رجالي | C18: 12 | D18: 25.2 | E18: 7.2 | F18: 18
A19: 12 | B19: طقم اولادي 102 | C19: 1 | D19: 56 | E19: 16 | F19: 40
A20: 14 | B20: 102 | C20: 52 | D20: 56 | E20: 16 | F20: 40
A21: 40 | B21: 102 | C21: 1 | D21: 63 | E21: 18 | F21: 45
A22: 36 | B22: 102 | C22: 1 | D22: 60.2 | E22: 17.2 | F22: 43
A23: 34 | B23: 102 | C23: 1 | D23: 58.8 | E23: 16.8 | F23: 42
A24: 4 | B24: 102 | C24: 1 | D24: 46.2 | E24: 13.2 | F24: 33
A25: 10 | B25: 102 | C25: 1 | D25: 51.8 | E25: 14.8 | F25: 37
A26: 14 | B26: بناتي 315 | C26: 1 | D26: 44.8 | E26: 12.8 | F26: 32
A27: 38 | B27: 315 | C27: 1 | D27: 47.6 | E27: 13.6 | F27: 34
A28: 34 | B28: 315 | C28: 1 | D28: 44.8 | E28: 12.8 | F28: 32
A29: 36 | B29: 315 | C29: 1 | D29: 46.2 | E29: 13.2 | F29: 33
A30: 40 | B30: 315 | C30: 1 | D30: 49 | E30: 14 | F30: 35
A31: 10 | B31: 315 | C31: 1 | D31: 42 | E31: 12 | F31: 30
A32: 8 | B32: 315 | C32: 1 | D32: 40.6 | E32: 11.6 | F32: 29
A33: 8 | B33: اندر مس الاء | C33: 12 | D33: 19.6 | E33: 5.6 | F33: 14
A34: 619 | B34: سوتيان سوفت ساده | C34: 0 | D34: 50.4 | E34: 14.4 | F34: 36
A35: 217 | B35: سوتيان سوفت مشجر | C35: 0 | D35: 50.4 | E35: 14.4 | F35: 36
A36: 68 | B36: سوتيان رياضي | C36: 0 | D36: 46.2 | E36: 13.2 | F36: 33
A37: 68 | B37: سوتيان رياضي كبير | C37: 0 | D37: 54.6 | E37: 15.6 | F37: 39
A38: 37 | B38: سوتيان توب بناتي | C38: 0 | D38: 46.2 | E38: 13.2 | F38: 33
A39: 6003 | B39: سوتيات سوفت منقط | C39: 0 | D39: 63 | E39: 18 | F39: 45
A40: 9228 | B40: سوتيان عادي a-m | C40: 61 | D40: 53.2 | E40: 15.2 | F40: 38
A41: 3921 | B41: بوش هنا | C41: 0 | D41: 60.2 | E41: 17.2 | F41: 43
A42: 1688 | B42: بوش ليوميل | C42: 0 | D42: 56 | E42: 16 | F42: 40
A43: 9810 | B43: بوش انشونلي | C43: 22 | D43: 51.8 | E43: 14.8 | F43: 37
B44: بدي الدباغ | C44: 0 | D44: 49 | E44: 14 | F44: 35
B45: بدي ديفا | C45: 0 | D45: 49 | E45: 14 | F45: 35
B46: ليدي | C46: 0 | D46: 49 | E46: 14 | F46: 35
B47: لجن عادي | C47: 0 | D47: 49 | E47: 14 | F47: 35
B48: ليزر | C48: 23 | D48: 49 | E48: 14 | F48: 35
B49: بنطلون الراعي | C49: 0 | D49: 28 | E49: 8 | F49: 20
B50: بنطلون نهال جامبو | C50: 0 | D50: 29.4 | E50: 8.4 | F50: 21
B51: بنطلون كارما | C51: 0 | D51: 26.6 | E51: 7.6 | F51: 19
B52: بنطلون سمسمه جنس | C52: 0 | D52: 33.6 | E52: 9.6 | F52: 24
B53: بنطلون ورد 3d | C53: 22 | D53: 29.4 | E53: 8.4 | F53: 21
D54: 0 | E54: 0
D55: 0 | E55: 0
D56: 0 | E56: 0
D57: 0 | E57: 0
D58: 0 | E58: 0
D59: 0 | E59: 0
D60: 0 | E60: 0
D61: 0 | E61: 0
D62: 0 | E62: 0
D63: 0 | E63: 0
D64: 0 | E64: 0
D65: 0 | E65: 0
D66: 0 | E66: 0
D67: =E67+F67 -> 0 | E67: =40/100*F67 -> 0
D68: 0 | E68: 0
D69: 0 | E69: 0
D70: 0 | E70: 0
D71: 0 | E71: 0
D72: 0 | E72: 0
D73: 0 | E73: 0
D74: 0 | E74: 0
D75: 0 | E75: 0
D76: 0 | E76: 0
D77: 0 | E77: 0
D78: 0 | E78: 0
D79: 0 | E79: 0
D80: 0 | E80: 0
D81: 0 | E81: 0
D82: 0 | E82: 0
D83: 0 | E83: 0
D84: 0 | E84: 0
D85: 0 | E85: 0
D86: 0 | E86: 0
D87: 0 | E87: 0
D88: 0 | E88: 0
D89: 0 | E89: 0
D90: 0 | E90: 0
D91: 0 | E91: 0
D92: 0 | E92: 0
D93: 0 | E93: 0
D94: 0 | E94: 0
D95: 0 | E95: 0
D96: 0 | E96: 0
D97: 0 | E97: 0
D98: 0 | E98: 0
D99: 0 | E99: 0
D100: 0 | E100: 0
D101: 0 | E101: 0
D102: 0 | E102: 0
D103: 0 | E103: 0
D104: 0 | E104: 0
D105: 0 | E105: 0
D106: 0 | E106: 0
D107: 0 | E107: 0
D108: 0 | E108: 0
D109: 0 | E109: 0
D110: 0 | E110: 0
D111: 0 | E111: 0
D112: 0 | E112: 0
D113: 0 | E113: 0
D114: 0 | E114: 0
D115: 0 | E115: 0
D116: 0 | E116: 0
D117: 0 | E117: 0
D118: 0 | E118: 0
D119: 0 | E119: 0
D120: 0 | E120: 0
D121: 0 | E121: 0
D122: 0 | E122: 0
D123: 0 | E123: 0
D124: 0 | E124: 0
D125: 0 | E125: 0
D126: 0 | E126: 0
D127: 0 | E127: 0
D128: 0 | E128: 0
D129: 0 | E129: 0
D130: 0 | E130: 0
D131: =E131+F131 -> 0 | E131: =40/100*F131 -> 0
D132: 0 | E132: 0
D133: 0 | E133: 0
D134: 0 | E134: 0
D135: 0 | E135: 0
D136: 0 | E136: 0
D137: 0 | E137: 0
D138: 0 | E138: 0
D139: 0 | E139: 0
D140: 0 | E140: 0
D141: 0 | E141: 0
D142: 0 | E142: 0
D143: 0 | E143: 0
D144: 0 | E144: 0
D145: 0 | E145: 0
D146: 0 | E146: 0
D147: 0 | E147: 0
D148: 0 | E148: 0
D149: 0 | E149: 0
D150: 0 | E150: 0
D151: 0 | E151: 0
D152: 0 | E152: 0
D153: 0 | E153: 0
D154: 0 | E154: 0
D155: 0 | E155: 0
D156: 0 | E156: 0
D157: 0 | E157: 0
D158: 0 | E158: 0
D159: 0 | E159: 0
D160: 0 | E160: 0
D161: 0 | E161: 0
D162: 0 | E162: 0
D163: 0 | E163: 0
D164: 0 | E164: 0
D165: 0 | E165: 0
D166: 0 | E166: 0
D167: 0 | E167: 0
D168: 0 | E168: 0
D169: 0 | E169: 0
D170: 0 | E170: 0
D171: 0 | E171: 0
D172: 0 | E172: 0
D173: 0 | E173: 0
D174: 0 | E174: 0
D175: 0 | E175: 0
D176: 0 | E176: 0
D177: 0 | E177: 0
D178: 0 | E178: 0
D179: 0 | E179: 0
D180: 0 | E180: 0
D181: 0 | E181: 0
D182: 0 | E182: 0
D183: 0 | E183: 0
D184: 0 | E184: 0
D185: 0 | E185: 0
D186: 0 | E186: 0
D187: 0 | E187: 0
D188: 0 | E188: 0
D189: 0 | E189: 0
D190: 0 | E190: 0
D191: 0 | E191: 0
D192: 0 | E192: 0
D193: 0 | E193: 0
D194: 0 | E194: 0
D195: =E195+F195 -> 0 | E195: =40/100*F195 -> 0
D196: 0 | E196: 0
D197: 0 | E197: 0
D198: 0 | E198: 0
D199: 0 | E199: 0
D200: 0 | E200: 0
... 928 more rows

Sheet Sheet6
A1: الصنف | B1: العدد | C1: ن | D1: السعر | E1: س1
A2: حجاب سوري قطعتين | B2: 15 | C2: 18 | D2: =40/100*C2 -> 7.2 | E2: =C2+D2 -> 25.2
A3: حجاب قطعه | B3: 3 | C3: 18 | D3: =40/100*C3 -> 7.2 | E3: =C3+D3 -> 25.2
A4: بندانه سوري | B4: 16 | C4: 5 | D4: 2 | E4: 7
A5: بونيه كب | B5: 4 | C5: 4 | D5: 1.6 | E5: 5.6
A6: بندانه فلونكه | B6: 3 | C6: 10 | D6: 4 | E6: 14 | G6: طرح
A7: نقاب وش استيك | B7: 15 | C7: 20 | D7: 8 | E7: 28
A8: طرحه بدون | B8: 7 | C8: 55 | D8: 22 | E8: 77
A9: نقاب مروحه | B9: 3 | C9: 50 | D9: 20 | E9: 70
A10: ماليزي تندا قطعتين | B10: 4 | C10: 70 | D10: 28 | E10: 98
A11: خمار مشجر | B11: 3 | C11: 45 | D11: 18 | E11: 63
A12: خمار عادي | B12: 9 | C12: 35 | D12: 14 | E12: 49
A13: خمار عادي امهات | B13: 2 | C13: 35 | D13: 14 | E13: 49
A14: خمار ماليزي قطعه واحده | B14: 1 | C14: 55 | D14: 22 | E14: 77

Sheet Sheet7
A1: الكود | B1: عدد | C1: السعر | D1: ن | E1: س1
A2: ملايه صاص 3d | B2: 1 | C2: 165 | D2: =30/100*C2 -> 49.5 | E2: 200
A3: ذا بوس | B3: 1 | C3: 180 | D3: =30/100*C3 -> 54 | E3: 220
A4: صاصا مطبوع | B4: 3 | C4: 75 | D4: 22.5 | E4: 100 | F4: مفروشات
A5: صاصا سفري | B5: 2 | C5: 90 | D5: 27 | E5: 140
A6: فوطه الفخراني | B6: 1 | C6: 135 | D6: 40.5 | E6: 175
A7: الجمل | B7: 1 | C7: 200 | D7: 60 | E7: 250
A8: ايمان | B8: 1 | C8: 175 | D8: 52.5 | E8: 220
A9: قنديل حمام | B9: 1 | C9: 25 | D9: 7.5 | E9: 60
A10: الشيف | B10: 1 | C10: 75 | D10: 22.5 | E10: 110
A11: ريتال حمام tulip | B11: 1 | C11: 55 | D11: 16.5 | E11: 80
A12: فالكون | B12: 1 | C12: 80 | D12: 24 | E12: 120
A13: حافظه سجاد | B13: 1 | C13: 215 | D13: 64.5 | E13: 250

Sheet Sheet8
A1: الكود | B1: الصنف | C1: العدد | D1: السعر | E1: ن | F1: س1
A2: 1186 | B2: طقم اطفال | C2: 1 | F2: 125
A3: 554_3 | B3: الجندي | C3: 1 | F3: 129
A4: 585_4 | C4: 1 | F4: 134
